[Event "Late-Titled-Tuesday-Blitz-April-23-2024"]
[Site "Chess.com"]
[Date "2024.04.23"]
[Round "1"]
[White "emeli_chess"]
[Black "grzechu96"]
[Result "0-1"]
[WhiteElo "2451"]
[BlackElo "2792"]
[TimeControl "180+1"]
[EndTime "14:06:21 PDT"]
[Termination "grzechu96 won by resignation"]

1. d4 {[%clk 0:02:59.6]} 1... d5 {[%clk 0:03:00]} 2. c4 {[%clk 0:02:56.5]} 2...
e6 {[%clk 0:02:59.7]} 3. Nc3 {[%clk 0:02:56.5]} 3... c6 {[%clk 0:02:59.9]} 4. e3
{[%clk 0:02:56.1]} 4... Nf6 {[%clk 0:02:58.4]} 5. Nf3 {[%clk 0:02:55.1]} 5...
Nbd7 {[%clk 0:02:58.1]} 6. Bd3 {[%clk 0:02:55.1]} 6... dxc4 {[%clk 0:02:58.2]}
7. Bxc4 {[%clk 0:02:55.7]} 7... b5 {[%clk 0:02:57.9]} 8. Bd3 {[%clk 0:02:56]}
8... a6 {[%clk 0:02:57]} 9. e4 {[%clk 0:02:54.1]} 9... c5 {[%clk 0:02:40.1]} 10.
d5 {[%clk 0:02:52.2]} 10... Bb7 {[%clk 0:02:32.6]} 11. O-O {[%clk 0:02:42.4]}
11... Qc7 {[%clk 0:02:29.9]} 12. dxe6 {[%clk 0:02:32.4]} 12... fxe6 {[%clk
0:02:30]} 13. Bc2 {[%clk 0:02:07]} 13... Bd6 {[%clk 0:02:03.6]} 14. Ng5 {[%clk
0:01:54.9]} 14... Nf8 {[%clk 0:01:58.2]} 15. f4 {[%clk 0:01:50.9]} 15... O-O-O
{[%clk 0:01:58.2]} 16. Qf3 {[%clk 0:01:41.5]} 16... h6 {[%clk 0:01:48.9]} 17.
Nxe6 {[%clk 0:01:19]} 17... Nxe6 {[%clk 0:01:46.9]} 18. Qh3 {[%clk 0:01:19.2]}
18... Kb8 {[%clk 0:01:15.3]} 19. Qxe6 {[%clk 0:01:12.5]} 19... Bc8 {[%clk
0:01:15.4]} 20. Nd5 {[%clk 0:00:56.9]} 20... Bxe6 {[%clk 0:01:13]} 21. Nxc7
{[%clk 0:00:57.1]} 21... Bxc7 {[%clk 0:01:13.9]} 22. e5 {[%clk 0:00:54.5]} 22...
Nd5 {[%clk 0:01:06.6]} 23. Be4 {[%clk 0:00:46.3]} 23... Rhf8 {[%clk 0:00:52.8]}
24. f5 {[%clk 0:00:45.1]} 24... Bxe5 {[%clk 0:00:52.2]} 25. fxe6 {[%clk
0:00:40.6]} 25... Bd4+ {[%clk 0:00:52.3]} 26. Be3 {[%clk 0:00:38.3]} 26... Nxe3
{[%clk 0:00:44.7]} 27. e7 {[%clk 0:00:17.7]} 27... Rxf1+ {[%clk 0:00:38.3]} 28.
Rxf1 {[%clk 0:00:16.9]} 28... Nxf1+ {[%clk 0:00:39.2]} 29. Kxf1 {[%clk 0:00:17]}
29... Re8 {[%clk 0:00:39.6]} 0-1

[Event "Late-Titled-Tuesday-Blitz-April-23-2024"]
[Site "Chess.com"]
[Date "2024.04.23"]
[Round "1"]
[White "IngOscarArdila"]
[Black "karinachess1"]
[Result "0-1"]
[WhiteElo "2265"]
[BlackElo "2620"]
[TimeControl "180+1"]
[EndTime "14:06:21 PDT"]
[Termination "karinachess1 won by resignation"]

1. d4 {[%clk 0:02:59.7]} 1... Nf6 {[%clk 0:03:00]} 2. c4 {[%clk 0:02:59.5]} 2...
e6 {[%clk 0:03:00.6]} 3. Nc3 {[%clk 0:02:59.5]} 3... d5 {[%clk 0:03:01.4]} 4.
Bg5 {[%clk 0:02:58.6]} 4... Be7 {[%clk 0:03:01.2]} 5. Nf3 {[%clk 0:02:57.6]}
5... O-O {[%clk 0:03:00.9]} 6. e3 {[%clk 0:02:57]} 6... h6 {[%clk 0:03:01.3]} 7.
Bh4 {[%clk 0:02:56.2]} 7... Ne4 {[%clk 0:03:01.7]} 8. Bxe7 {[%clk 0:02:54.7]}
8... Qxe7 {[%clk 0:03:02.6]} 9. Nxe4 {[%clk 0:02:55.1]} 9... dxe4 {[%clk
0:03:02.7]} 10. Nd2 {[%clk 0:02:55.7]} 10... f5 {[%clk 0:03:02]} 11. Be2 {[%clk
0:02:42.9]} 11... Nd7 {[%clk 0:03:01.9]} 12. O-O {[%clk 0:02:41.6]} 12... Nf6
{[%clk 0:03:01.6]} 13. f4 {[%clk 0:02:28.4]} 13... Rd8 {[%clk 0:02:31.4]} 14.
Qb3 {[%clk 0:02:18.8]} 14... c5 {[%clk 0:02:28.5]} 15. Qc3 {[%clk 0:02:11.8]}
15... cxd4 {[%clk 0:02:05.9]} 16. exd4 {[%clk 0:02:11.2]} 16... Bd7 {[%clk
0:02:04.7]} 17. Rac1 {[%clk 0:01:58]} 17... Rac8 {[%clk 0:02:04.7]} 18. Qe3
{[%clk 0:01:56.9]} 18... b5 {[%clk 0:01:55.2]} 19. b3 {[%clk 0:01:54.2]} 19...
Qa3 {[%clk 0:01:50.5]} 20. Rc2 {[%clk 0:01:47.4]} 20... a6 {[%clk 0:01:49.8]}
21. Rfc1 {[%clk 0:01:46.5]} 21... Be8 {[%clk 0:01:48.2]} 22. h3 {[%clk
0:01:40.3]} 22... Bh5 {[%clk 0:01:39.6]} 23. Bxh5 {[%clk 0:01:29.8]} 23... Nxh5
{[%clk 0:01:40.5]} 24. cxb5 {[%clk 0:01:29.4]} 24... Rxc2 {[%clk 0:01:26.7]} 25.
Rxc2 {[%clk 0:01:29.4]} 25... axb5 {[%clk 0:01:27.4]} 26. g4 {[%clk 0:01:15.2]}
26... Nf6 {[%clk 0:01:23.7]} 27. g5 {[%clk 0:01:14.7]} 27... Nd5 {[%clk
0:01:22.8]} 28. Qe2 {[%clk 0:00:53.6]} 28... Qd6 {[%clk 0:01:15.7]} 29. Qxb5
{[%clk 0:00:42.1]} 29... Qxf4 {[%clk 0:01:14.1]} 30. Qc6 {[%clk 0:00:37.4]}
30... Qg3+ {[%clk 0:01:10.2]} 31. Kh1 {[%clk 0:00:35.8]} 31... Qxh3+ {[%clk
0:01:07.5]} 32. Kg1 {[%clk 0:00:36.2]} 32... Nf4 {[%clk 0:01:04]} 33. Nxe4
{[%clk 0:00:31]} 33... fxe4 {[%clk 0:00:58.2]} 34. Rf2 {[%clk 0:00:31.1]} 34...
e3 {[%clk 0:00:47]} 35. Rxf4 {[%clk 0:00:30.5]} 35... Qg3+ {[%clk 0:00:47]} 36.
Kh1 {[%clk 0:00:30.4]} 36... Qxf4 {[%clk 0:00:46.6]} 37. Qxe6+ {[%clk
0:00:30.5]} 37... Kh8 {[%clk 0:00:43.6]} 38. g6 {[%clk 0:00:29.6]} 0-1

[Event "Late-Titled-Tuesday-Blitz-April-23-2024"]
[Site "Chess.com"]
[Date "2024.04.23"]
[Round "1"]
[White "djano"]
[Black "ilya2700"]
[Result "1-0"]
[WhiteElo "2629"]
[BlackElo "2310"]
[TimeControl "180+1"]
[EndTime "14:06:22 PDT"]
[Termination "djano won on time"]

1. e4 {[%clk 0:03:00.9]} 1... c5 {[%clk 0:03:00.2]} 2. Nc3 {[%clk 0:02:59.7]}
2... Nc6 {[%clk 0:03:00.3]} 3. f4 {[%clk 0:02:59.4]} 3... g6 {[%clk 0:02:59.3]}
4. Nf3 {[%clk 0:02:59.7]} 4... Bg7 {[%clk 0:02:59.5]} 5. a4 {[%clk 0:03:00.3]}
5... e6 {[%clk 0:02:59.2]} 6. e5 {[%clk 0:03:00]} 6... Nge7 {[%clk 0:02:58.4]}
7. Ne4 {[%clk 0:02:57.6]} 7... O-O {[%clk 0:02:50]} 8. Nxc5 {[%clk 0:02:57.6]}
8... d6 {[%clk 0:02:50.2]} 9. exd6 {[%clk 0:02:56]} 9... Qxd6 {[%clk 0:02:49.9]}
10. Ne4 {[%clk 0:02:54.7]} 10... Qxf4 {[%clk 0:02:49.5]} 11. d3 {[%clk
0:02:54.8]} 11... Qc7 {[%clk 0:02:47]} 12. Be2 {[%clk 0:02:54.9]} 12... Nf5
{[%clk 0:02:27.2]} 13. O-O {[%clk 0:02:50.6]} 13... Qb6+ {[%clk 0:02:23.5]} 14.
Kh1 {[%clk 0:02:50.9]} 14... Ne3 {[%clk 0:02:23.4]} 15. Bxe3 {[%clk 0:02:50.7]}
15... Qxe3 {[%clk 0:02:24.3]} 16. c3 {[%clk 0:02:48.9]} 16... e5 {[%clk
0:02:18.6]} 17. Qc2 {[%clk 0:02:40.4]} 17... Bf5 {[%clk 0:02:03.8]} 18. Nd6
{[%clk 0:02:36.7]} 18... Be6 {[%clk 0:01:31.2]} 19. Nxb7 {[%clk 0:02:27.5]}
19... Qb6 {[%clk 0:00:53.9]} 20. Nd6 {[%clk 0:02:24.2]} 20... Nb4 {[%clk
0:00:49]} 21. cxb4 {[%clk 0:02:21.8]} 21... Qxd6 {[%clk 0:00:49.2]} 22. Qc5
{[%clk 0:02:19.3]} 22... Rfd8 {[%clk 0:00:39.5]} 23. Rac1 {[%clk 0:02:19.3]}
23... Rab8 {[%clk 0:00:38.1]} 24. b5 {[%clk 0:02:16.4]} 24... Bb3 {[%clk
0:00:23.6]} 25. Qxa7 {[%clk 0:02:07.8]} 25... Ra8 {[%clk 0:00:20.7]} 26. Qe3
{[%clk 0:01:58.8]} 26... Rxa4 {[%clk 0:00:19.3]} 27. b6 {[%clk 0:01:59.3]} 27...
Rb4 {[%clk 0:00:18.4]} 28. Nd2 {[%clk 0:01:45.5]} 28... Rxb6 {[%clk 0:00:16.5]}
29. Ne4 {[%clk 0:01:45.9]} 29... Qb8 {[%clk 0:00:11]} 30. Nc5 {[%clk 0:01:38.8]}
30... Bd5 {[%clk 0:00:09.6]} 31. Bf3 {[%clk 0:01:37.8]} 31... Bxf3 {[%clk
0:00:08]} 32. Qxf3 {[%clk 0:01:38.7]} 32... Qa7 {[%clk 0:00:05.2]} 33. b3 {[%clk
0:01:28.7]} 33... Rbd6 {[%clk 0:00:03.9]} 34. Nb7 {[%clk 0:01:23.3]} 34... Rxd3
{[%clk 0:00:03.9]} 35. Qxf7+ {[%clk 0:01:23.4]} 35... Kh8 {[%clk 0:00:03.5]} 36.
Nxd8 {[%clk 0:01:22.8]} 36... Qxf7 {[%clk 0:00:04.4]} 37. Nxf7+ {[%clk
0:01:21.4]} 37... Kg8 {[%clk 0:00:03.2]} 38. Rc8+ {[%clk 0:01:21.2]} 38... Bf8
{[%clk 0:00:02.8]} 39. Ng5 {[%clk 0:01:21.4]} 39... Kg7 {[%clk 0:00:01.7]} 40.
Ne6+ {[%clk 0:01:20.7]} 1-0

[Event "Late-Titled-Tuesday-Blitz-April-23-2024"]
[Site "Chess.com"]
[Date "2024.04.23"]
[Round "1"]
[White "Onischuk_V"]
[Black "PedroGil25"]
[Result "1-0"]
[WhiteElo "2827"]
[BlackElo "2487"]
[TimeControl "180+1"]
[EndTime "14:06:33 PDT"]
[Termination "Onischuk_V won by resignation"]

1. e4 {[%clk 0:02:59.4]} 1... c5 {[%clk 0:02:59.9]} 2. Nf3 {[%clk 0:02:58.8]}
2... e6 {[%clk 0:02:59.3]} 3. b3 {[%clk 0:02:58.6]} 3... Nc6 {[%clk 0:02:56.1]}
4. Bb2 {[%clk 0:02:58.7]} 4... d6 {[%clk 0:02:55.1]} 5. c4 {[%clk 0:02:54.6]}
5... Nf6 {[%clk 0:02:55.2]} 6. Nc3 {[%clk 0:02:54.2]} 6... Be7 {[%clk
0:02:55.9]} 7. d4 {[%clk 0:02:50.8]} 7... cxd4 {[%clk 0:02:55.4]} 8. Nxd4 {[%clk
0:02:50.9]} 8... O-O {[%clk 0:02:56]} 9. Be2 {[%clk 0:02:48.7]} 9... Qc7 {[%clk
0:02:54.6]} 10. O-O {[%clk 0:02:48.1]} 10... a6 {[%clk 0:02:54.9]} 11. Rc1
{[%clk 0:02:47.1]} 11... Nxd4 {[%clk 0:02:54.1]} 12. Qxd4 {[%clk 0:02:46.3]}
12... Bd7 {[%clk 0:02:53.5]} 13. Rfd1 {[%clk 0:02:44.3]} 13... Rfd8 {[%clk
0:02:52.6]} 14. Qe3 {[%clk 0:02:36.9]} 14... Rac8 {[%clk 0:02:50.5]} 15. Qg3
{[%clk 0:02:36.8]} 15... Qa5 {[%clk 0:02:47.7]} 16. Bd3 {[%clk 0:02:23.9]} 16...
h6 {[%clk 0:02:46.9]} 17. Bb1 {[%clk 0:02:23.2]} 17... Qg5 {[%clk 0:02:46.2]}
18. Ne2 {[%clk 0:02:12.2]} 18... Qxg3 {[%clk 0:02:44.7]} 19. hxg3 {[%clk
0:02:12.1]} 19... Bc6 {[%clk 0:02:44.9]} 20. f3 {[%clk 0:02:11.6]} 20... b5
{[%clk 0:02:40.9]} 21. cxb5 {[%clk 0:02:05.9]} 21... axb5 {[%clk 0:02:34.1]} 22.
Nd4 {[%clk 0:02:05.8]} 22... Be8 {[%clk 0:02:34.6]} 23. a3 {[%clk 0:01:52.4]}
23... d5 {[%clk 0:02:29]} 24. e5 {[%clk 0:01:51.4]} 24... Nh5 {[%clk 0:02:26.7]}
25. Kf2 {[%clk 0:01:47.4]} 25... Bc5 {[%clk 0:02:03]} 26. g4 {[%clk 0:01:10]}
26... Nf4 {[%clk 0:02:02.1]} 27. g3 {[%clk 0:01:10]} 27... Ng6 {[%clk
0:02:01.7]} 28. f4 {[%clk 0:01:10.5]} 28... b4 {[%clk 0:01:47.6]} 29. axb4
{[%clk 0:01:05.8]} 29... Bxb4 {[%clk 0:01:48.5]} 30. Bxg6 {[%clk 0:01:05.2]}
30... fxg6 {[%clk 0:01:46.9]} 31. Nxe6 {[%clk 0:01:04.7]} 31... Rxc1 {[%clk
0:01:47.5]} 32. Rxc1 {[%clk 0:01:04.3]} 32... Rb8 {[%clk 0:01:47.9]} 33. Rc7
{[%clk 0:00:56.4]} 33... Bf7 {[%clk 0:01:41]} 34. Nd4 {[%clk 0:00:48.1]} 34...
Ba5 {[%clk 0:01:41.6]} 35. Rd7 {[%clk 0:00:44.6]} 35... Bb6 {[%clk 0:01:40.8]}
36. f5 {[%clk 0:00:44.6]} 36... gxf5 {[%clk 0:01:40.4]} 37. gxf5 {[%clk
0:00:44.6]} 37... Be8 {[%clk 0:01:38.8]} 38. Rxd5 {[%clk 0:00:42.6]} 38... Rd8
{[%clk 0:01:26.3]} 39. Rxd8 {[%clk 0:00:42]} 39... Bxd8 {[%clk 0:01:27.2]} 40.
b4 {[%clk 0:00:40.5]} 40... Bb6 {[%clk 0:01:26.7]} 41. Ke3 {[%clk 0:00:39.6]}
41... Kf7 {[%clk 0:01:26.1]} 42. Kf4 {[%clk 0:00:39.3]} 42... Bxd4 {[%clk
0:01:25.3]} 43. Bxd4 {[%clk 0:00:38.9]} 43... Ba4 {[%clk 0:01:21.1]} 44. e6+
{[%clk 0:00:38.8]} 44... Kf8 {[%clk 0:01:21]} 45. Ke5 {[%clk 0:00:38.4]} 45...
Bb5 {[%clk 0:01:12.4]} 46. Kd6 {[%clk 0:00:37.7]} 46... Bd3 {[%clk 0:01:12.3]}
47. g4 {[%clk 0:00:35.1]} 47... h5 {[%clk 0:01:09.1]} 48. gxh5 {[%clk
0:00:32.8]} 48... Bxf5 {[%clk 0:01:09.7]} 49. b5 {[%clk 0:00:32.6]} 49... Be4
{[%clk 0:01:09.6]} 50. b6 {[%clk 0:00:31]} 50... Bf3 {[%clk 0:01:09]} 51. Kd7
{[%clk 0:00:25.1]} 1-0

[Event "Late-Titled-Tuesday-Blitz-April-23-2024"]
[Site "Chess.com"]
[Date "2024.04.23"]
[Round "1"]
[White "koncheto"]
[Black "NitaLucian"]
[Result "0-1"]
[WhiteElo "2629"]
[BlackElo "2353"]
[TimeControl "180+1"]
[EndTime "14:06:33 PDT"]
[Termination "NitaLucian won on time"]

1. e4 {[%clk 0:03:00.9]} 1... d6 {[%clk 0:03:00.3]} 2. d4 {[%clk 0:03:01]} 2...
Nf6 {[%clk 0:03:00.8]} 3. Bd3 {[%clk 0:03:01.6]} 3... e5 {[%clk 0:03:01.2]} 4.
c3 {[%clk 0:03:01.9]} 4... Nc6 {[%clk 0:02:59.8]} 5. Ne2 {[%clk 0:03:01.3]} 5...
d5 {[%clk 0:02:58.8]} 6. exd5 {[%clk 0:03:01.6]} 6... Nxd5 {[%clk 0:02:58.3]} 7.
O-O {[%clk 0:03:01.1]} 7... exd4 {[%clk 0:02:57.7]} 8. cxd4 {[%clk 0:03:00.7]}
8... Bd6 {[%clk 0:02:56.1]} 9. Nbc3 {[%clk 0:02:59.8]} 9... Nxc3 {[%clk
0:02:55.6]} 10. bxc3 {[%clk 0:03:00.7]} 10... O-O {[%clk 0:02:54.8]} 11. Rb1
{[%clk 0:02:56.7]} 11... b6 {[%clk 0:02:53.8]} 12. Be4 {[%clk 0:02:55]} 12...
Bb7 {[%clk 0:02:53.7]} 13. h3 {[%clk 0:02:49.9]} 13... Qh4 {[%clk 0:02:51.9]}
14. Bf3 {[%clk 0:02:46.4]} 14... Na5 {[%clk 0:02:51]} 15. Bxb7 {[%clk
0:02:43.3]} 15... Nxb7 {[%clk 0:02:50.6]} 16. c4 {[%clk 0:02:43.8]} 16... Nd8
{[%clk 0:02:47]} 17. Be3 {[%clk 0:02:38]} 17... Nc6 {[%clk 0:02:46.7]} 18. Qa4
{[%clk 0:02:25.7]} 18... Ne7 {[%clk 0:02:45.2]} 19. Rbd1 {[%clk 0:02:02.4]}
19... Nf5 {[%clk 0:02:44.5]} 20. Bc1 {[%clk 0:01:52.5]} 20... Rfe8 {[%clk
0:02:42.3]} 21. Qc2 {[%clk 0:01:45.6]} 21... Qe4 {[%clk 0:02:39.1]} 22. Rd2
{[%clk 0:01:28.6]} 22... Rad8 {[%clk 0:02:26.7]} 23. Qb2 {[%clk 0:01:20]} 23...
a5 {[%clk 0:02:15.5]} 24. a3 {[%clk 0:01:05.8]} 24... h6 {[%clk 0:02:13]} 25.
Qb5 {[%clk 0:00:38.5]} 25... Nh4 {[%clk 0:02:11.1]} 26. f3 {[%clk 0:00:20.6]}
26... Qe3+ {[%clk 0:02:10.9]} 27. Kh1 {[%clk 0:00:19.2]} 27... Qe6 {[%clk
0:02:09.9]} 28. Qh5 {[%clk 0:00:16.8]} 28... Ng6 {[%clk 0:02:05.3]} 29. d5
{[%clk 0:00:16.4]} 29... Qe5 {[%clk 0:02:02.5]} 30. Qxe5 {[%clk 0:00:15.5]}
30... Bxe5 {[%clk 0:02:02.6]} 31. Nd4 {[%clk 0:00:15]} 31... Bxd4 {[%clk
0:02:01.5]} 32. Rxd4 {[%clk 0:00:15.9]} 32... Re2 {[%clk 0:02:01.5]} 33. Rfd1
{[%clk 0:00:11.6]} 33... Rd6 {[%clk 0:01:57.9]} 34. a4 {[%clk 0:00:11.1]} 34...
Ra2 {[%clk 0:01:56.9]} 35. h4 {[%clk 0:00:10.2]} 35... Rxa4 {[%clk 0:01:55.9]}
36. h5 {[%clk 0:00:10.7]} 36... Nf8 {[%clk 0:01:55]} 37. Bf4 {[%clk 0:00:11.2]}
37... Rd7 {[%clk 0:01:55]} 38. Rb1 {[%clk 0:00:08.7]} 38... Rb4 {[%clk
0:01:53.4]} 39. Rxb4 {[%clk 0:00:02.9]} 39... axb4 {[%clk 0:01:53.3]} 40. Rd2
{[%clk 0:00:03.3]} 40... Re7 {[%clk 0:01:38.9]} 41. Rb2 {[%clk 0:00:03.4]} 41...
Re1+ {[%clk 0:01:38.7]} 42. Kh2 {[%clk 0:00:03.8]} 42... Re7 {[%clk 0:01:36]}
43. Rxb4 {[%clk 0:00:03.6]} 43... Rd7 {[%clk 0:01:36.5]} 44. d6 {[%clk
0:00:02.3]} 44... cxd6 {[%clk 0:01:34]} 45. Rxb6 {[%clk 0:00:02.8]} 45... d5
{[%clk 0:01:33.2]} 46. c5 {[%clk 0:00:02.7]} 46... Ne6 {[%clk 0:01:33.3]} 47.
Rb8+ {[%clk 0:00:01.7]} 47... Rd8 {[%clk 0:01:32.4]} 48. Rb7 {[%clk 0:00:01.1]}
48... Nxf4 {[%clk 0:01:31.5]} 49. c6 {[%clk 0:00:01.5]} 49... Ne6 {[%clk
0:01:31.1]} 50. c7 {[%clk 0:00:02.1]} 50... Rf8 {[%clk 0:01:28.6]} 51. Kg3
{[%clk 0:00:01.4]} 51... d4 {[%clk 0:01:28.5]} 0-1

[Event "Late-Titled-Tuesday-Blitz-April-23-2024"]
[Site "Chess.com"]
[Date "2024.04.23"]
[Round "1"]
[White "Kopytkin"]
[Black "Mischuk_D"]
[Result "0-1"]
[WhiteElo "2447"]
[BlackElo "2777"]
[TimeControl "180+1"]
[EndTime "14:06:34 PDT"]
[Termination "Mischuk_D won on time"]

1. d4 {[%clk 0:03:00.3]} 1... d5 {[%clk 0:02:59.1]} 2. Bg5 {[%clk 0:02:59.8]}
2... h6 {[%clk 0:02:56.9]} 3. Bf4 {[%clk 0:02:58.7]} 3... c5 {[%clk 0:02:56.1]}
4. e3 {[%clk 0:02:58.7]} 4... Nc6 {[%clk 0:02:55.1]} 5. c3 {[%clk 0:02:59.1]}
5... Nf6 {[%clk 0:02:50.4]} 6. Nd2 {[%clk 0:02:57.7]} 6... Bf5 {[%clk 0:02:50]}
7. Qb3 {[%clk 0:02:56.9]} 7... Qd7 {[%clk 0:02:49.5]} 8. Ngf3 {[%clk 0:02:55.9]}
8... c4 {[%clk 0:02:46.3]} 9. Qd1 {[%clk 0:02:54.2]} 9... e6 {[%clk 0:02:44.7]}
10. h3 {[%clk 0:02:33.3]} 10... Bd6 {[%clk 0:02:43.8]} 11. g3 {[%clk 0:02:11.4]}
11... O-O {[%clk 0:02:41.8]} 12. Bg2 {[%clk 0:02:10.6]} 12... Be7 {[%clk
0:02:41.5]} 13. Ne5 {[%clk 0:02:03.5]} 13... Nxe5 {[%clk 0:02:39.5]} 14. Bxe5
{[%clk 0:01:55.8]} 14... Bd3 {[%clk 0:02:38.7]} 15. Bf1 {[%clk 0:01:44.7]} 15...
Bxf1 {[%clk 0:02:37.6]} 16. Kxf1 {[%clk 0:01:39.5]} 16... b5 {[%clk 0:02:37.7]}
17. a3 {[%clk 0:01:26.3]} 17... Nh7 {[%clk 0:02:32.9]} 18. g4 {[%clk 0:01:25.3]}
18... a5 {[%clk 0:02:30.3]} 19. Kg2 {[%clk 0:01:19.4]} 19... Bd6 {[%clk
0:02:25.7]} 20. Bxd6 {[%clk 0:01:18.3]} 20... Qxd6 {[%clk 0:02:25.8]} 21. f4
{[%clk 0:01:17.4]} 21... Nf6 {[%clk 0:02:22.4]} 22. h4 {[%clk 0:01:10]} 22... g6
{[%clk 0:02:12.1]} 23. g5 {[%clk 0:01:08.4]} 23... Nh5 {[%clk 0:02:12.3]} 24.
Nf3 {[%clk 0:01:05.4]} 24... b4 {[%clk 0:02:00.8]} 25. axb4 {[%clk 0:00:47.5]}
25... axb4 {[%clk 0:02:00.3]} 26. Ne5 {[%clk 0:00:47.9]} 26... bxc3 {[%clk
0:01:43.6]} 27. bxc3 {[%clk 0:00:47.4]} 27... Ng7 {[%clk 0:01:15.2]} 28. Kf3
{[%clk 0:00:40.6]} 28... h5 {[%clk 0:01:13.6]} 29. Rh2 {[%clk 0:00:15.7]} 29...
Nf5 {[%clk 0:01:08.2]} 30. Rha2 {[%clk 0:00:09.8]} 30... Rxa2 {[%clk 0:01:07.4]}
31. Rxa2 {[%clk 0:00:09.7]} 31... Nxh4+ {[%clk 0:01:07.7]} 32. Kf2 {[%clk
0:00:07.8]} 32... Nf5 {[%clk 0:01:02]} 33. Ra7 {[%clk 0:00:06.6]} 33... Qb6
{[%clk 0:01:00.9]} 0-1

[Event "Late-Titled-Tuesday-Blitz-April-23-2024"]
[Site "Chess.com"]
[Date "2024.04.23"]
[Round "1"]
[White "protectiago"]
[Black "whiteglovethief"]
[Result "0-1"]
[WhiteElo "2057"]
[BlackElo "2565"]
[TimeControl "180+1"]
[EndTime "14:06:38 PDT"]
[Termination "whiteglovethief won on time"]

1. d4 {[%clk 0:02:59.7]} 1... Nf6 {[%clk 0:02:58.3]} 2. c4 {[%clk 0:02:59.2]}
2... c5 {[%clk 0:02:58.4]} 3. d5 {[%clk 0:02:58.7]} 3... b5 {[%clk 0:02:58.4]}
4. cxb5 {[%clk 0:02:58.3]} 4... a6 {[%clk 0:02:58]} 5. bxa6 {[%clk 0:02:59.2]}
5... g6 {[%clk 0:02:57.8]} 6. g3 {[%clk 0:02:59.3]} 6... Bg7 {[%clk 0:02:57.4]}
7. Bg2 {[%clk 0:02:57.3]} 7... O-O {[%clk 0:02:58]} 8. d6 {[%clk 0:02:57.3]}
8... Rxa6 {[%clk 0:02:57.3]} 9. dxe7 {[%clk 0:02:57.3]} 9... Qxe7 {[%clk
0:02:58]} 10. Nc3 {[%clk 0:02:56.1]} 10... Nc6 {[%clk 0:02:55.7]} 11. Nf3 {[%clk
0:02:53.3]} 11... Ne4 {[%clk 0:02:52.6]} 12. Nd5 {[%clk 0:02:44.8]} 12... Qd8
{[%clk 0:02:50.9]} 13. O-O {[%clk 0:02:42.7]} 13... d6 {[%clk 0:02:46.9]} 14.
Nh4 {[%clk 0:02:03.3]} 14... f5 {[%clk 0:02:46.3]} 15. Nf3 {[%clk 0:01:53.5]}
15... Be6 {[%clk 0:02:41.5]} 16. h4 {[%clk 0:01:35.5]} 16... Nd4 {[%clk
0:02:32.1]} 17. Nf4 {[%clk 0:01:31.3]} 17... Bxa2 {[%clk 0:02:14.7]} 18. Nxd4
{[%clk 0:01:23.6]} 18... Bxd4 {[%clk 0:02:09.3]} 19. Rxa2 {[%clk 0:01:23.7]}
19... Rxa2 {[%clk 0:02:09.8]} 20. Qb3+ {[%clk 0:01:23.5]} 20... Kh8 {[%clk
0:02:04.8]} 21. Qxa2 {[%clk 0:01:23.3]} 21... Qf6 {[%clk 0:01:54.2]} 22. Nd5
{[%clk 0:00:50.9]} 22... Qe6 {[%clk 0:01:48.5]} 23. Bh6 {[%clk 0:00:46.6]} 23...
Rb8 {[%clk 0:01:42.4]} 24. Qa7 {[%clk 0:00:29.4]} 24... Rxb2 {[%clk 0:01:41.2]}
25. Qa8+ {[%clk 0:00:28.1]} 25... Qg8 {[%clk 0:01:41.8]} 26. Qa7 {[%clk
0:00:17.1]} 26... Qxd5 {[%clk 0:01:37.8]} 27. e3 {[%clk 0:00:13.7]} 27... Bf6
{[%clk 0:01:28.4]} 28. Ra1 {[%clk 0:00:13.3]} 28... Kg8 {[%clk 0:01:14.5]} 29.
Bf1 {[%clk 0:00:12.7]} 29... Nxf2 {[%clk 0:01:08.5]} 30. Qa8+ {[%clk 0:00:11.4]}
30... Qxa8 {[%clk 0:01:07.3]} 31. Rxa8+ {[%clk 0:00:12.3]} 31... Kf7 {[%clk
0:01:07.3]} 32. Bc4+ {[%clk 0:00:12.5]} 32... Ke7 {[%clk 0:01:07.7]} 33. Bf8+
{[%clk 0:00:10]} 33... Kd7 {[%clk 0:01:08.1]} 34. Ra7+ {[%clk 0:00:08.1]} 34...
Kc6 {[%clk 0:01:07.4]} 35. Rxh7 {[%clk 0:00:06.7]} 35... Ng4 {[%clk 0:01:04.7]}
36. Rf7 {[%clk 0:00:04.2]} 36... d5 {[%clk 0:01:03.9]} 37. Bf1 {[%clk
0:00:03.6]} 37... c4 {[%clk 0:01:01.1]} 38. Bh3 {[%clk 0:00:03.6]} 38... Be5
{[%clk 0:00:57.8]} 39. Bxg4 {[%clk 0:00:03]} 39... fxg4 {[%clk 0:00:58.7]} 0-1

[Event "Late-Titled-Tuesday-Blitz-April-23-2024"]
[Site "Chess.com"]
[Date "2024.04.23"]
[Round "1"]
[White "NovakRatko"]
[Black "profedechess93"]
[Result "0-1"]
[WhiteElo "2380"]
[BlackElo "2687"]
[TimeControl "180+1"]
[EndTime "14:06:39 PDT"]
[Termination "profedechess93 won by checkmate"]

1. d4 {[%clk 0:02:56.8]} 1... d5 {[%clk 0:02:53.2]} 2. c4 {[%clk 0:02:56.4]}
2... c6 {[%clk 0:02:53.3]} 3. cxd5 {[%clk 0:02:52.4]} 3... cxd5 {[%clk
0:02:54.2]} 4. Nc3 {[%clk 0:02:51.1]} 4... Nf6 {[%clk 0:02:54.3]} 5. f3 {[%clk
0:02:51.6]} 5... Nc6 {[%clk 0:02:35.1]} 6. e4 {[%clk 0:02:51]} 6... e6 {[%clk
0:02:20.2]} 7. e5 {[%clk 0:02:49.9]} 7... Ng8 {[%clk 0:02:20.8]} 8. f4 {[%clk
0:02:49.5]} 8... Nge7 {[%clk 0:02:15.6]} 9. Nf3 {[%clk 0:02:48.8]} 9... Nf5
{[%clk 0:02:15.2]} 10. Bb5 {[%clk 0:02:42.4]} 10... h5 {[%clk 0:02:02.2]} 11.
O-O {[%clk 0:02:40.7]} 11... Bd7 {[%clk 0:02:00.1]} 12. Ba4 {[%clk 0:02:23]}
12... Qb6 {[%clk 0:01:54.6]} 13. Kh1 {[%clk 0:02:15.2]} 13... Ncxd4 {[%clk
0:01:21.8]} 14. Bxd7+ {[%clk 0:02:13.1]} 14... Kxd7 {[%clk 0:01:21]} 15. Ng5
{[%clk 0:01:19.5]} 15... h4 {[%clk 0:01:12.1]} 16. Na4 {[%clk 0:00:57.7]} 16...
Qc6 {[%clk 0:00:53.6]} 17. Nxf7 {[%clk 0:00:55]} 17... Rh7 {[%clk 0:00:52.5]}
18. Ng5 {[%clk 0:00:46.5]} 18... Rh6 {[%clk 0:00:52.5]} 19. Nf7 {[%clk
0:00:44.2]} 19... Ng3+ {[%clk 0:00:27.8]} 20. hxg3 {[%clk 0:00:39.1]} 20...
hxg3+ {[%clk 0:00:28.7]} 21. Nxh6 {[%clk 0:00:38.9]} 21... Bc5 {[%clk
0:00:25.8]} 22. Nxc5+ {[%clk 0:00:33.6]} 22... Qxc5 {[%clk 0:00:26.2]} 23. Be3
{[%clk 0:00:28.7]} 23... Rh8 {[%clk 0:00:26.4]} 24. Qxd4 {[%clk 0:00:23.4]}
24... Rxh6+ {[%clk 0:00:26.9]} 25. Kg1 {[%clk 0:00:23.8]} 25... Qe7 {[%clk
0:00:27.5]} 26. Qxa7 {[%clk 0:00:18]} 26... Rh1+ {[%clk 0:00:26.4]} 27. Kxh1
{[%clk 0:00:07.7]} 27... Qh4+ {[%clk 0:00:27]} 28. Kg1 {[%clk 0:00:07.5]} 28...
Qh2# {[%clk 0:00:27.9]} 0-1